bitfinex-derivatives/quotes_ETHF0:USTF0_20250330
["timestamp","ask_amount","ask_price","bid_price","bid_amount"]
[1743358172583,1.35383837,1816.6,1816.4,0.0082361]
[1743358172784,1.35383837,1816.7,1816.5,1.10141]
[1743358172985,2.86433837,1816.6,1816.4,0.0082361]
[1743358173391,3.2078,1817.1,1816.5,10.51752815]
[1743358173594,1.35383837,1817.0,1816.5,16.81807889]
[1743358173785,3.2078,1817.1,1816.9,1.10119]
[1743358174093,1.35383837,1817.0,1816.8,1.10125]
[1743358174287,2.86433837,1817.0,1816.7,1.10128]
[1743358174591,2.86433837,1817.0,1816.8,3.2078]
[1743358174788,2.86433837,1817.0,1816.9,0.67040983]
[1743358175291,2.86433837,1817.0,1816.9,3.87820983]
[1743358175480,3.96546837,1817.0,1816.9,0.67040983]
[1743358175684,1.10132,1816.7,1816.5,1.09678932]
[1743358175889,2.77993837,1816.6,1816.5,2.19821932]
[1743358176092,2.77993837,1816.6,1816.5,1.09678932]
[1743358176384,2.77993837,1816.6,1816.5,0.68564735]
[1743358176585,2.77993837,1816.6,1816.5,2.33827735]
[1743358176787,2.77993837,1816.6,1816.5,3.43506667]
[1743358176788,1.4261,1816.6,1816.5,3.43506667]
[1743358177488,2.77993837,1816.6,1816.5,1.78243667]
[1743358177789,3.88130837,1816.6,1816.5,1.78243667]
[1743358178193,2.77993837,1816.6,1816.5,1.78243667]
[1743358178494,5.059,1816.8,1816.6,1.10134]
[1743358178687,6.41283837,1816.8,1816.6,1.10134]
[1743358178887,7.87353837,1816.8,1816.6,1.10134]
[1743358179089,8.97478837,1816.8,1816.6,1.10134]
[1743358179287,7.87353837,1816.8,1816.7,1.10131]
[1743358179490,1.4607,1816.8,1816.7,1.10131]
[1743358179686,3.91581837,1816.8,1816.7,0.68564735]
[1743358179891,2.81453837,1816.8,1816.7,0.68564735]
[1743358180091,2.81453837,1816.8,1816.7,1.78695735]
[1743358180793,2.81453837,1816.8,1816.7,0.68564735]
[1743358180990,3.91578837,1816.8,1816.7,0.68564735]
[1743358181395,2.81453837,1816.8,1816.7,1.78695735]
[1743358181798,2.81453837,1816.8,1816.7,0.68564735]
[1743358182099,3.91578837,1816.8,1816.7,0.68564735]
[1743358184295,7.12358837,1816.8,1816.7,0.68564735]
[1743358184495,3.91578837,1816.8,1816.7,0.68564735]
[1743358185003,6.4567,1816.8,1816.7,1.10131]
[1743358185190,7.81053837,1816.8,1816.7,1.10131]
[1743358185395,7.81053837,1816.8,1816.7,1.78695735]
[1743358185596,8.91178837,1816.8,1816.7,0.68564735]
[1743358185794,7.81053837,1816.8,1816.7,1.78695735]
[1743358185996,8.91178837,1816.8,1816.7,0.68564735]
[1743358187803,12.11958837,1816.8,1816.7,0.68564735]
[1743358188300,1.10143,1816.5,1816.4,0.0082361]
[1743358188509,2.45526837,1816.5,1816.4,0.0082361]
[1743358188903,2.77763837,1816.5,1816.4,0.0082361]
[1743358189110,3.87906837,1816.5,1816.4,0.0082361]
[1743358189302,3.87906837,1816.5,1816.4,1.80093469]
[1743358193408,3.2078,1816.6,1816.4,1.80093469]
[1743358193603,5.50434,1817.5,1816.4,1.80093469]
[1743358193604,3.2078,1819.0,1817.5,2.75206]
[1743358193805,3.2078,1818.7,1817.8,3.2078]
[1743358194007,3.2078,1818.7,1817.9,0.5504]
[1743358194305,3.2078,1818.7,1818.2,3.2078]
[1743358194606,1.10019,1818.6,1818.2,3.2078]
[1743358194811,5.222,1818.5,1818.3,0.0082361]
[1743358195106,5.222,1818.5,1818.3,1.80093469]
[1743358195310,8.82225,1818.5,1818.3,1.80093469]
[1743358195809,6.32225,1818.5,1818.4,1.79269859]
[1743358196308,8.82225,1818.5,1818.4,1.79269859]
[1743358198005,11.98405,1818.5,1818.4,1.79269859]
[1743358198304,1.10045,1818.2,1817.6,1.10074]
[1743358198505,0.0082361,1818.6,1817.3,4.5968]
[1743358198506,3.2078,1818.0,1817.3,4.5968]
[1743358198806,3.2078,1817.7,1817.3,2.48992]
[1743358199106,1.4774,1817.6,1817.4,1.10086]
[1743358199612,5.16,1817.5,1817.3,1.1091461]
[1743358199806,0.0082361,1817.7,1817.6,1.10077]
[1743358200003,4.6852,1818.3,1818.2,1.1004]
[1743358201517,0.0082361,1818.4,1818.3,1.10034]
[1743358202006,0.0082361,1818.4,1818.0,3.7582]
[1743358202206,3.2078,1818.2,1817.8,3.7582]
[1743358202604,3.2078,1818.2,1818.0,1.1005]
[1743358202809,8.4658,1818.1,1818.0,1.1005]
[1743358203407,3.2078,1818.1,1818.0,1.1005]
[1743358203611,3.2078,1818.1,1818.0,1.10048]
[1743358203808,8.4650361,1818.4,1818.3,1.10034]
[1743358204107,9.5653561,1818.4,1817.7,0.5504]
[1743358204306,3.2078,1818.2,1817.7,3.7582]
[1743358204514,3.2078,1818.2,1818.0,1.10051]
[1743358204813,8.4500361,1818.4,1818.3,1.10034]
[1743358205008,8.4500361,1818.4,1817.9,3.2078]
[1743358205210,3.2160361,1818.4,1818.2,1.10038]
[1743358205412,8.4450361,1818.4,1818.2,1.10038]
[1743358205607,8.4450361,1818.4,1818.2,1.10037]
[1743358206212,1.10035,1818.3,1817.7,3.7582]
[1743358206407,3.2160361,1818.4,1817.9,2.75147]
[1743358206408,0.0082361,1818.4,1817.9,2.75147]
[1743358206612,3.2078,1819.2,1819.0,1.09988]
[1743358206813,3.2078,1819.2,1818.8,3.2078]
[1743358207010,3.2078,1819.2,1819.1,1.09986]
[1743358207605,3.2078,1819.2,1819.0,1.1081161]
[1743358207811,8.4658,1819.2,1819.1,1.09986]
[1743358208219,3.2078,1819.2,1819.1,1.09986]
[1743358208420,5.249,1819.3,1819.2,1.0998]
[1743358208916,5.248,1819.3,1819.2,1.09975]
[1743358209515,5.248,1819.3,1819.0,0.0082361]
[1743358210013,5.233,1819.5,1819.2,3.2078]
[1743358210210,5.233,1819.5,1819.1,0.5504]
[1743358210211,3.2078,1819.4,1819.1,0.5504]
[1743358210408,3.2078,1819.4,1819.2,1.09977]
[1743358210610,1.09984,1819.2,1819.0,0.0082361]
[1743358210806,1.09984,1819.2,1819.0,0.5586361]
[1743358211010,4.30751,1819.4,1819.0,1.6585061]
[1743358211214,1.09977,1819.3,1819.1,0.6621653]
[1743358211512,1.09979,1819.3,1819.1,0.6621653]
[1743358211718,1.09974,1819.3,1819.1,0.6621653]
[1743358211924,3.2078,1819.4,1819.1,0.6621653]
[1743358212412,3.2078,1819.4,1819.2,1.09979]
[1743358212613,4.3075,1819.4,1819.1,1.7619853]
[1743358212820,3.2078,1819.4,1819.2,0.6621653]
[1743358213022,4.30752,1819.4,1819.2,0.6621653]
[1743358213418,1.09974,1819.3,1819.2,0.6621653]
[1743358213617,3.2078,1819.4,1819.1,0.6621653]
[1743358213921,1.0998,1819.2,1819.1,0.6621653]
[1743358214110,1.09978,1819.3,1819.1,0.6621653]
[1743358214520,5.19,1819.2,1819.0,1.7703214]
[1743358215022,6.28985,1819.2,1819.0,0.6704014]
[1743358215210,6.28985,1819.2,1819.0,1.7703214]
[1743358215410,1.09986,1819.1,1819.0,0.6704014]
[1743358215715,4.30766,1819.1,1819.0,0.6704014]
[1743358215911,4.30766,1819.1,1817.8,3.2078]
[1743358215912,2.75016,1818.8,1817.8,3.2078]
[1743358216115,3.2078,1818.4,1817.8,3.2078]
[1743358216316,5.177,1818.3,1817.9,7.82133913]
[1743358216716,6.27737,1818.3,1818.0,1.10052]
[1743358217021,6.2856061,1818.3,1818.0,1.1087561]
[1743358217723,0.0082361,1818.3,1818.0,0.0082361]
[1743358217916,5.16,1818.2,1818.0,0.0082361]
[1743358218218,0.0082361,1818.3,1818.2,1.1004]
[1743358218623,0.0082361,1818.3,1818.2,4.3082]
[1743358218823,0.0082361,1818.3,1818.1,1.10043]
[1743358219024,0.0082361,1818.3,1818.2,1.1004]
[1743358219220,1.1086061,1818.3,1818.0,1.6591261]
[1743358219523,1.10046,1818.1,1818.0,0.5586361]
[1743358219723,9.46426,1818.1,1818.0,0.0082361]
[1743358221223,9.44426,1818.1,1818.0,0.0082361]
[1743358223115,11.94426,1818.1,1818.0,0.0082361]
[1743358224329,2.75147,1817.9,1817.3,0.5504]
[1743358224619,3.2078,1817.6,1817.4,1.10084]
[1743358224826,5.104,1817.5,1817.3,2.56002]
[1743358225025,7.66506,1817.5,1817.3,1.4591]
[1743358225429,1.10089,1817.4,1817.2,1.1092361]
[1743358225627,1.4602,1817.4,1817.2,1.4673361]
[1743358225817,2.56111,1817.4,1817.2,1.4673361]
[1743358226021,1.4602,1817.4,1817.2,2.5683161]
[1743358226333,1.4602,1817.4,1817.2,2.5683361]
[1743358226832,7.6321,1817.4,1817.2,2.5683361]
[1743358227023,6.5312,1817.4,1817.2,2.5683461]
[1743358227224,6.5312,1817.4,1817.2,3.1187461]
[1743358227418,3.2078,1817.6,1817.2,2.0177361]
[1743358227730,5.069,1818.0,1817.8,1.1006]
[1743358228026,6.5775,1818.1,1817.9,1.5033]
[1743358228230,6.5775,1818.1,1817.9,2.60386]
[1743358228432,6.5735,1818.1,1817.9,2.60386]
[1743358228628,6.5735,1818.1,1818.0,0.66225315]
[1743358228832,6.5735,1818.1,1817.2,0.0082361]
[1743358228833,2.75147,1817.9,1817.2,0.0082361]
[1743358229035,1.10083,1817.5,1817.4,1.3723]
[1743358229229,5.081,1817.8,1817.4,1.3723]
[1743358229532,1.10081,1817.6,1817.4,1.3723]
[1743358229729,1.10075,1817.7,1817.4,1.3723]
[1743358229929,8.2888,1817.8,1817.4,1.3723]
[1743358230127,1.10083,1817.5,1817.4,1.3723]
[1743358230330,1.10083,1817.5,1817.3,0.5504]
[1743358230530,6.16195,1817.4,1817.2,1.3805361]
[1743358231143,5.061,1817.4,1817.2,0.0082361]
[1743358231430,4.30875,1817.3,1817.2,0.0082361]
[1743358231627,4.30875,1817.3,1816.9,1.9227]
[1743358231628,1.10113,1817.0,1816.9,0.5504]
[1743358231835,9.38093,1817.0,1816.9,0.5504]
[1743358232027,1.10141,1816.6,1816.4,0.5504]
[1743358232223,5.068,1816.6,1816.4,0.5504]
[1743358232627,5.068,1816.6,1816.5,1.4629]
[1743358233028,5.056,1816.6,1816.5,1.4629]
[1743358233837,6.15737,1816.6,1816.5,1.4629]
[1743358234037,5.056,1816.6,1816.5,1.4629]
[1743358234731,6.15737,1816.6,1816.5,1.4629]
[1743358235031,9.658,1816.6,1816.3,0.0082361]
[1743358235230,6.4502,1816.6,1816.3,0.0082361]
[1743358235536,1.10149,1816.4,1816.3,0.0082361]
[1743358236030,2.4956,1816.6,1816.3,4.3175661]
[1743358236235,5.027,1816.5,1816.4,1.4063]
[1743358236435,7.63273,1816.5,1816.4,1.4063]
[1743358236932,5.019,1816.6,1816.5,1.10141]
[1743358237135,5.019,1816.6,1816.4,1.4063]
[1743358237136,5.019,1816.6,1816.4,2.50776]
[1743358237339,5.019,1816.6,1816.4,1.4063]
[1743358237639,6.5233,1816.6,1816.4,1.4063]
[1743358238036,1.5043,1816.6,1816.4,2.50776]
[1743358238341,6.5133,1816.6,1816.4,1.4063]
[1743358238647,6.5133,1816.6,1816.3,0.0082361]
[1743358238648,1.10149,1816.4,1816.3,0.0082361]
[1743358239037,7.51069,1816.4,1816.3,0.0082361]
[1743358239835,1.1018,1815.9,1815.8,1.439]
[1743358240134,5.03,1815.9,1815.7,3.759]
[1743358240336,5.03,1815.9,1815.7,5.198]
[1743358240736,6.13183,1815.9,1815.7,5.198]
[1743358240937,7.50403,1815.9,1815.8,0.6561512]
[1743358241437,6.4022,1815.9,1815.8,0.6561512]
[1743358241640,7.504,1815.9,1815.8,0.6561512]
[1743358242338,7.504,1815.9,1815.7,4.6726]
[1743358242638,1.3722,1815.9,1815.7,4.6726]
[1743358242839,4.999,1815.9,1815.8,1.10182]
[1743358243040,4.999,1815.9,1815.8,0.65629062]
[1743358243239,1.10183,1815.9,1815.8,0.65629062]
[1743358243441,4.997,1816.0,1815.8,0.65629062]
[1743358243940,1.1018,1815.9,1815.8,0.65629062]
[1743358244141,6.09877,1816.0,1815.8,1.75813062]
[1743358244331,2.50201,1816.1,1815.9,1.10179]
[1743358244534,4.987,1816.0,1815.9,1.4285]
[1743358244730,6.08974,1816.0,1815.9,1.4285]
[1743358244934,1.10174,1816.0,1815.9,1.4285]
[1743358245143,6.08574,1816.0,1815.9,2.08479062]
[1743358245641,6.07874,1816.0,1815.9,2.08479062]
[1743358245843,6.07474,1816.0,1815.9,2.08479062]
[1743358246946,6.07474,1816.0,1815.9,0.65629062]
[1743358249238,4.973,1816.0,1815.9,0.65629062]
[1743358249446,6.07474,1816.0,1815.9,0.65629062]
[1743358254046,6.07474,1816.0,1815.6,2.57100946]
[1743358254047,1.10192,1815.7,1815.6,0.00825946]
[1743358254345,1.10191,1815.8,1815.6,1.11020946]
[1743358254546,1.4181,1815.7,1815.6,1.11020946]
[1743358255752,5.96569,1816.1,1815.9,1.10176]
[1743358255947,5.96569,1816.1,1815.9,1.65296]
[1743358256252,7.38379,1816.1,1815.9,1.10176]
[1743358256446,7.38379,1816.1,1815.9,3.11016]
[1743358256851,1.10174,1816.0,1815.9,2.0084]
[1743358257052,1.4891,1816.0,1815.7,3.759]
[1743358257247,1.4891,1816.0,1815.8,1.4572]
[1743358257549,1.10169,1816.1,1815.9,1.1018]
[1743358257755,7.44079,1816.1,1816.0,1.4572]
[1743358258548,3.50178,1816.6,1816.0,1.4572]
[1743358258754,1.10155,1816.3,1816.1,4.30945]
[1743358259156,7.43065,1816.3,1816.1,4.30945]
[1743358259360,2.59065,1816.3,1816.1,4.30945]
[1743358259558,4.838,1816.5,1816.4,1.10149]
[1743358259754,4.838,1816.5,1816.3,3.2078]
[1743358260151,2.48,1816.4,1816.2,1.10158]
[1743358260347,1.1015,1816.4,1816.3,1.4395]
[1743358260654,11.02241915,1817.7,1816.3,1.4395]
[1743358260655,1.3785,1818.2,1816.7,3.2078]
[1743358260854,1.3785,1817.9,1817.2,3.2078]
[1743358261047,1.10086,1817.5,1817.2,3.2078]
[1743358261247,1.3785,1817.4,1817.2,3.2078]
[1743358261448,1.3785,1817.4,1817.2,4.30878]
[1743358261659,1.3785,1817.4,1817.2,3.2078]
[1743358262261,6.12295,1817.3,1817.2,3.2078]
[1743358262462,8.9434,1817.3,1816.4,3.7582]
[1743358262664,8.9434,1817.3,1816.6,1.10135]
[1743358262665,3.2078,1817.0,1816.6,1.10135]
[1743358263069,6.4926,1816.9,1816.7,1.1013]
[1743358263256,6.4926,1816.9,1816.6,1.10133]
[1743358263458,6.4926,1816.9,1816.7,1.10131]
[1743358264462,6.4926,1816.9,1816.6,1.10957946]
[1743358264661,1.4726,1816.9,1816.7,1.10131]
[1743358264853,5.0,1816.8,1816.7,1.10131]
[1743358265362,1.4726,1816.9,1816.7,1.10131]
[1743358265569,4.988,1816.8,1816.7,1.10131]
[1743358266655,1.4726,1816.9,1816.7,2.53321]
[1743358266856,1.4726,1816.9,1816.8,1.10125]
[1743358267069,6.4446,1816.9,1816.8,1.10125]
[1743358267370,3.2078,1817.2,1817.1,1.10107]
[1743358267569,8.1758,1817.2,1817.1,1.10107]
[1743358267769,8.1758,1817.2,1817.0,1.10109]
[1743358267967,3.2078,1817.4,1816.7,11.1679]
[1743358268265,3.2374,1817.6,1817.1,7.21935472]
[1743358268471,3.2374,1817.6,1817.4,1.10089]
[1743358268678,1.47225946,1817.5,1817.4,1.10089]
[1743358271366,1.47225946,1817.5,1817.4,4.30869]
[1743358271565,0.0296,1817.6,1817.5,1.10083]
[1743358271767,0.0296,1817.6,1817.5,2.46993]
[1743358271966,0.0296,1817.6,1817.5,5.67773]
[1743358272168,0.0296,1817.6,1817.5,2.46993]
[1743358272371,0.0296,1817.6,1817.5,5.67773]
[1743358274574,0.0296,1817.6,1817.5,12.93458989]
[1743358275473,0.0296,1817.6,1817.5,2.46993]
[1743358275982,0.0296,1817.6,1817.5,6.22813]
[1743358277771,0.0296,1817.6,1817.4,1.10085]
[1743358277976,0.0296,1817.6,1817.5,1.10083]
[1743358278163,1.4931,1817.6,1817.5,1.10083]
[1743358278874,2.59387,1817.6,1817.4,1.10084]
[1743358279077,2.59387,1817.6,1817.3,12.9438]
[1743358279273,5.94884,1817.5,1817.3,10.83691]
[1743358279476,1.4635,1817.4,1817.3,10.83691]
[1743358279773,1.4635,1817.4,1817.0,1.4183]
[1743358279961,4.6713,1817.4,1816.7,0.5504]
[1743358280165,1.10109,1817.1,1816.9,1.10117]
[1743358280361,1.4635,1817.0,1816.9,1.10117]
[1743358282576,1.4635,1817.0,1816.8,1.10121]
[1743358283476,2.56466,1817.0,1816.8,1.10121]
[1743358283777,5.77247,1817.0,1816.7,1.10131]
[1743358284079,1.10119,1816.9,1816.7,1.10131]
[1743358284379,1.10119,1816.9,1816.6,0.55865946]
[1743358284380,2.48377,1816.8,1816.6,1.10961946]
[1743358284579,4.809,1816.7,1816.6,0.00825946]
[1743358284771,6.1915,1816.7,1816.6,0.00825946]
[1743358285374,7.29281,1816.7,1816.6,0.00825946]
[1743358285880,1.3825,1816.7,1816.6,1.10962946]
[1743358287771,1.3825,1816.7,1816.6,0.00825946]
[1743358288173,2.48381,1816.7,1816.6,0.00825946]
[1743358289278,1.3825,1816.7,1816.6,1.10962946]
[1743358290076,4.771,1816.8,1816.7,1.10131]
[1743358290272,4.771,1816.8,1816.7,2.50121]
[1743358290479,5.87225,1816.8,1816.6,1.10959946]
[1743358290681,1.4514,1816.7,1816.6,1.10959946]
[1743358290879,1.4514,1816.7,1816.6,1.10962946]
[1743358293478,1.4514,1816.7,1816.2,1.10156]
[1743358293479,1.10154,1816.4,1816.2,1.10156]
[1743358293786,1.3912,1816.3,1816.2,1.10156]
[1743358297885,2.49275,1816.3,1816.1,1.10990946]
[1743358298083,1.3912,1816.3,1816.1,1.10992946]
[1743358298283,2.4928,1816.3,1816.1,1.10992946]
[1743358298779,2.49278,1816.3,1816.1,1.10991946]
[1743358299185,1.3912,1816.3,1816.1,0.00825946]
[1743358299382,1.10161,1816.2,1816.1,0.00825946]
[1743358299581,2.4928,1816.3,1816.1,0.00825946]
[1743358300284,2.4928,1816.3,1816.1,1.10991946]
[1743358300485,2.49275,1816.3,1816.1,1.10988946]
[1743358300886,4.599,1816.3,1816.1,0.00825946]
[1743358301188,1.10161,1816.2,1816.1,0.00825946]
[1743358301488,2.61201,1816.2,1816.1,0.00825946]
[1743358301785,1.5104,1816.2,1815.6,5.2292]
[1743358301983,7.8968,1816.1,1815.7,1.10189]
[1743358302183,2.48077,1816.0,1815.8,1.10184]
[1743358302686,1.379,1816.0,1815.9,1.1018]
[1743358302887,2.48074,1816.0,1815.8,1.10181]
[1743358303085,2.48078,1816.0,1815.7,0.00825946]
[1743358303290,2.48078,1816.0,1815.8,1.10182]
[1743358304084,1.379,1816.0,1815.8,1.10182]
[1743358304684,4.662,1816.3,1816.2,1.10161]
[1743358304889,5.65566705,1816.3,1816.2,1.10161]
[1743358305495,1.4681,1816.3,1816.2,1.10161]
[1743358305887,0.00825946,1816.4,1816.3,1.10155]
[1743358306094,0.8161,1816.6,1816.5,1.10143]
[1743358307792,0.8161,1816.6,1816.5,4.30923]
[1743358308492,0.8161,1816.6,1816.5,1.10143]
[1743358310899,0.8161,1816.6,1816.4,1.10144]
[1743358311086,0.8161,1816.6,1816.3,3.2078]
[1743358311282,6.52948,1816.6,1816.4,1.10146]
[1743358311488,5.4281,1816.6,1816.5,1.10143]
[1743358311690,0.8161,1816.6,1816.5,1.10143]
[1743358311894,5.4231,1816.6,1816.5,1.10143]
[1743358312089,6.5245,1816.6,1816.4,1.10145]
[1743358312888,6.5245,1816.6,1816.5,1.10143]
[1743358313491,5.4231,1816.6,1816.5,1.10143]
[1743358317691,0.8161,1816.6,1816.5,1.10143]
[1743358317893,0.8161,1816.6,1816.5,4.30923]
[1743358318101,0.00825946,1816.7,1816.5,3.2078]
[1743358318398,5.2374,1817.1,1817.0,1.10113]
[1743358318596,6.607,1817.1,1817.0,1.10113]
[1743358319282,2.055,1817.1,1817.0,1.10113]
[1743358319486,6.597,1817.1,1817.0,1.10113]
[1743358320689,7.69807,1817.1,1816.9,1.10940946]
[1743358320891,1.10113,1817.0,1816.9,0.00825946]
[1743358321092,1.4769,1817.0,1816.9,1.10944946]
[1743358321686,1.4769,1817.0,1816.9,0.00825946]
[1743358321892,2.57803,1817.0,1816.9,0.00825946]
[1743358322293,1.10125,1816.9,1816.4,4.6834]
[1743358322493,6.0039,1816.8,1816.7,1.10131]
[1743358323802,6.0039,1816.8,1816.7,4.30911]
[1743358323989,6.0039,1816.8,1816.7,5.74031]
[1743358324189,4.527,1816.8,1816.7,5.74031]
[1743358324395,1.4525,1817.0,1816.9,1.10119]
[1743358326194,2.55363,1817.0,1816.9,1.10119]
[1743358326903,1.4525,1817.0,1816.9,1.10119]
[1743358328403,1.4525,1817.0,1816.9,4.30899]
[1743358330210,0.00825946,1817.2,1817.1,1.10107]
[1743358330412,1.42865946,1817.2,1817.1,1.10107]
[1743358331011,2.52968946,1817.2,1817.0,1.1011]
[1743358331417,1.42865946,1817.2,1817.1,1.10107]
[1743358332311,1.42865946,1817.2,1817.0,1.10108]
[1743358332510,1.42865946,1817.2,1817.1,1.10107]
[1743358333117,2.52966946,1817.2,1817.0,1.10109]
[1743358333818,2.52966946,1817.2,1817.1,1.10107]
[1743358334018,2.52966946,1817.2,1817.0,1.10108]
[1743358334220,2.52966946,1817.2,1817.1,1.10107]
[1743358334420,1.42865946,1817.2,1816.9,4.6895]
[1743358334616,2.52966946,1817.2,1817.0,1.10113]
[1743358334814,1.42865946,1817.2,1817.1,1.10107]
[1743358335415,1.42865946,1817.2,1817.0,1.10109]
[1743358335714,2.52970946,1817.2,1817.0,1.10113]
[1743358335916,1.1011,1817.1,1816.9,1.10117]
[1743358336120,1.4881,1817.0,1816.9,1.10117]
[1743358336520,5.9071,1817.0,1816.9,1.10117]
[1743358337022,0.00825946,1817.2,1817.1,1.10107]
[1743358337319,4.42125946,1817.2,1817.1,1.10107]
[1743358338818,2.75158,1817.9,1817.1,1.10107]
[1743358338819,3.2078,1817.7,1817.1,4.30887]
[1743358339025,4.4356,1817.6,1817.5,1.10083]
[1743358339919,4.402,1817.9,1817.5,5.95979]
[1743358340219,0.00825946,1817.7,1817.6,1.4275]
[1743358340423,0.00825946,1817.7,1817.6,4.6353]
[1743358340626,0.00825946,1817.7,1817.6,5.73607]
[1743358340820,4.402,1817.9,1817.8,1.10064]
[1743358341028,4.402,1817.9,1817.8,4.30844]
[1743358341217,1.5116,1818.2,1818.1,1.10046]
[1743358341423,5.9056,1818.2,1818.0,1.10048]
[1743358341727,5.9056,1818.2,1817.9,1.3789]
[1743358341924,1.5116,1818.2,1818.1,1.10046]
[1743358342219,5.90685946,1818.2,1818.1,1.10046]
[1743358343827,1.51985946,1818.2,1818.1,1.10046]
[1743358344424,4.72765946,1818.2,1817.7,3.7582]
[1743358344729,1.10075,1817.7,1817.5,0.00825946]
[1743358344927,1.4539,1817.6,1817.5,0.00825946]
[1743358345128,1.4539,1817.6,1817.5,1.10908946]
[1743358345531,1.4539,1817.6,1817.5,2.50318946]
[1743358346629,1.4539,1817.6,1817.5,1.40235946]
[1743358346926,2.55467,1817.6,1817.5,0.00825946]
[1743358347922,1.4539,1817.6,1817.5,0.00825946]
[1743358348125,2.55467,1817.6,1817.5,0.00825946]
[1743358348724,5.76247,1817.6,1817.5,0.00825946]
[1743358349831,2.55467,1817.6,1817.5,0.00825946]
[1743358350532,5.76247,1817.6,1817.5,0.00825946]
[1743358351829,5.76247,1817.6,1817.0,3.2078]
[1743358351830,1.10099,1817.3,1817.0,3.2078]
[1743358352127,6.84341,1817.2,1817.0,4.3089]
[1743358352335,5.7404,1817.2,1817.0,4.30889]
[1743358352633,5.7404,1817.2,1817.1,1.10107]
[1743358352936,6.84144,1817.2,1817.0,1.10938946]
[1743358354033,5.7404,1817.2,1817.1,1.10107]
[1743358354533,6.84141,1817.2,1817.0,1.10934946]
[1743358357028,6.84141,1817.2,1817.0,0.00825946]
[1743358357029,5.7404,1817.2,1817.0,0.00825946]
[1743358357230,8.9482,1817.2,1816.5,0.5504]
[1743358357427,1.10133,1816.7,1816.5,1.10141]
[1743358357728,1.4631,1816.6,1816.5,2.48701]
[1743358357930,1.4631,1816.6,1816.4,1.10145]
[1743358358231,4.294,1816.5,1816.2,3.2078]
[1743358358424,1.10155,1816.3,1816.1,1.10167]
[1743358358623,3.2078,1816.6,1816.1,1.10167]
[1743358358624,5.7551,1816.2,1816.1,1.10167]
[1743358358837,6.85671,1816.2,1816.0,13.75948513]
[1743358359426,6.85671,1816.2,1816.0,12.65779513]
[1743358359633,5.7551,1816.2,1816.0,0.00825946]
[1743358359829,5.7551,1816.2,1816.0,2.55945946]
[1743358360337,6.85673,1816.2,1816.0,1.45775946]
[1743358360534,5.7551,1816.2,1816.0,2.55947946]
[1743358360729,5.7551,1816.2,1816.0,1.45775946]
[1743358360937,5.7551,1816.2,1816.0,2.55943946]
[1743358361233,1.4631,1816.2,1816.1,1.10167]
[1743358361436,4.275,1816.2,1816.1,1.10163]
[1743358362837,5.37661,1816.2,1816.0,1.45775946]
[1743358363132,2.56707,1816.1,1816.0,0.00825946]
[1743358363336,3.27777,1816.1,1816.0,0.00825946]
[1743358367337,2.1761,1816.1,1816.0,0.00825946]
[1743358367635,3.27777,1816.1,1816.0,0.00825946]
[1743358379545,1.10188,1815.8,1815.6,1.10195]
[1743358379751,5.595,1815.7,1815.6,1.5156]
[1743358379951,5.595,1815.7,1815.6,2.61758]
[1743358380849,4.165,1815.7,1815.6,2.61758]
[1743358381448,1.41066468,1815.7,1815.6,2.61758]
[1743358384359,2.79186468,1815.7,1815.6,2.61758]
[1743358384959,4.141,1815.8,1815.6,4.7234]
[1743358385151,4.141,1815.8,1815.7,2.57022]
[1743358386359,5.24286,1815.8,1815.7,1.4683]
[1743358386560,8.45069,1815.8,1815.6,1.10193]
[1743358386760,1.3812,1815.7,1815.6,2.57028]
[1743358389760,4.141,1815.8,1815.7,1.10192]
[1743358390061,0.00825946,1816.4,1816.3,1.10155]
[1743358390454,4.13025946,1816.4,1816.3,1.10155]
[1743358391057,5.23174946,1816.4,1816.2,1.10158]
[1743358391254,7.33805946,1816.4,1815.9,3.2078]
[1743358391449,1.10169,1816.1,1815.9,2.49936]
[1743358391654,1.4768,1816.0,1815.9,2.4994]
[1743358392259,0.6961,1816.2,1815.9,1.3976]
[1743358392565,4.8111,1816.2,1816.1,1.10167]
[1743358392755,4.115,1816.2,1816.1,1.10167]
[1743358393562,1.4634,1816.2,1816.1,1.10167]
[1743358393755,1.4634,1816.2,1816.0,1.1017]
[1743358393756,6.67303,1816.2,1816.0,1.1017]
[1743358393955,6.67304,1816.2,1816.0,2.4788]
[1743358394166,1.10167,1816.1,1815.9,1.10176]
[1743358394460,1.10167,1816.1,1815.7,3.961]
[1743358394461,1.4634,1816.0,1815.8,2.47892]
[1743358394658,4.105,1815.9,1815.7,1.10189]
[1743358394860,1.4634,1815.8,1815.7,2.47899]
[1743358395061,1.10193,1815.7,1815.5,3.63325584]
[1743358395256,2.56526,1815.8,1815.6,4.5849]
[1743358395461,2.56526,1815.8,1815.6,5.68685]
[1743358395757,1.4634,1815.8,1815.6,2.47905]
[1743358397961,2.56527,1815.8,1815.6,2.47905]
[1743358399566,1.10192,1815.7,1815.6,1.3771]
[1743358399863,1.4949,1815.7,1815.6,1.10198]
[1743358400063,1.4949,1815.7,1815.6,2.55648]
[1743358400763,1.4949,1815.7,1815.6,1.4545]
[1743358400966,1.4949,1815.7,1815.6,2.55648]
[1743358402067,1.10198,1815.6,1815.5,0.00825946]
[1743358402263,8.37778,1815.6,1815.5,0.00825946]
[1743358402471,9.12438,1815.6,1815.5,0.00825946]
[1743358403768,8.0224,1815.6,1815.1,1.51650164]
[1743358404071,1.10217,1815.3,1815.1,0.41426164]
[1743358404369,5.5109,1815.2,1815.1,1.10228]
[1743358404671,5.5119,1815.2,1815.1,1.10228]
[1743358407169,4.061,1815.2,1815.1,1.10228]
[1743358407566,4.061,1815.2,1815.1,4.31008]
[1743358411475,5.4805,1815.2,1815.1,4.31008]
[1743358412375,4.061,1815.2,1815.1,4.31008]